[Event "Titled Tuesday Blitz May 10 Late 2022"]
[White "Lehtosaari, Mauri"]
[Black "Tatarinov, Dmitry"]
[WhiteFideId "501999"]
[BlackFideId "24160067"]
[WhiteElo "2513"]
[BlackElo "2302"]
[Result "1-0"]
[Round "06"]
[TimeControl "180+1"]
[Date "2022.05.11"]
[WhiteClock "0:00:13"]
[BlackClock "0:00:03"]

1. d4 {[%clk 0:03:00]}  d5 {[%clk 0:02:58]} 2. c4 {[%clk 0:02:55]}  c6 {[%clk 0:02:57]} 3. cxd5 {[%clk 0:02:53]}  cxd5 {[%clk 0:02:56]} 4. Nf3 {[%clk 0:02:54]}  Nf6 {[%clk 0:02:55]} 5. Nc3 {[%clk 0:02:55]}  Nc6 {[%clk 0:02:56]} 6. e3 {[%clk 0:02:55]}  a6 {[%clk 0:02:52]} 7. Bd3 {[%clk 0:02:51]}  Bg4 {[%clk 0:02:52]} 8. Qb3 {[%clk 0:02:50]}  Bxf3 {[%clk 0:02:52]} 9. gxf3 {[%clk 0:02:50]}  Rb8 {[%clk 0:02:50]} 10. Bd2 {[%clk 0:02:43]}  e6 {[%clk 0:02:50]} 11. Rg1 {[%clk 0:02:42]}  g6 {[%clk 0:02:49]} 12. Rc1 {[%clk 0:02:31]}  Bd6 {[%clk 0:02:46]} 13. h3 {[%clk 0:02:28]}  O-O {[%clk 0:02:45]} 14. f4 {[%clk 0:02:22]}  Kh8 {[%clk 0:02:44]} 15. Na4 {[%clk 0:02:22]}  Na5 {[%clk 0:02:40]} 16. Qb6 {[%clk 0:02:13]}  Nc4 {[%clk 0:02:35]} 17. Qxd8 {[%clk 0:02:09]}  Rfxd8 {[%clk 0:02:36]} 18. Bc3 {[%clk 0:02:08]}  b5 {[%clk 0:02:36]} 19. Nc5 {[%clk 0:02:05]}  b4 {[%clk 0:02:31]} 20. Bd2 {[%clk 0:01:59]}  Bxc5 {[%clk 0:02:30]} 21. dxc5 {[%clk 0:02:00]}  Nxd2 {[%clk 0:02:12]} 22. Kxd2 {[%clk 0:01:59]}  a5 {[%clk 0:02:11]} 23. c6 {[%clk 0:01:53]}  Ne4+ {[%clk 0:02:10]} 24. Ke2 {[%clk 0:01:46]}  Rbc8 {[%clk 0:02:10]} 25. Rc2 {[%clk 0:01:42]}  Rc7 {[%clk 0:02:09]} 26. Bxe4 {[%clk 0:01:29]}  dxe4 {[%clk 0:02:09]} 27. Rg5 {[%clk 0:01:26]}  f5 {[%clk 0:02:08]} 28. Rg1 {[%clk 0:01:25]}  Kg7 {[%clk 0:02:08]} 29. Rgc1 {[%clk 0:01:23]}  Kf7 {[%clk 0:02:08]} 30. Rc5 {[%clk 0:01:23]}  Ra8 {[%clk 0:02:00]} 31. Rb5 {[%clk 0:01:21]}  Ke7 {[%clk 0:01:58]} 32. Rcc5 {[%clk 0:01:06]}  Ra6 {[%clk 0:01:53]} 33. Rxa5 {[%clk 0:01:02]}  Rxa5 {[%clk 0:01:50]} 34. Rxa5 {[%clk 0:01:02]}  Rxc6 {[%clk 0:01:51]} 35. Kd2 {[%clk 0:00:54]}  Rb6 {[%clk 0:01:40]} 36. Ra7+ {[%clk 0:00:52]}  Kf6 {[%clk 0:01:39]} 37. Rxh7 {[%clk 0:00:50]}  e5 {[%clk 0:01:33]} 38. fxe5+ {[%clk 0:00:49]}  Kxe5 {[%clk 0:01:34]} 39. Ra7 {[%clk 0:00:41]}  Kf6 {[%clk 0:01:33]} 40. h4 {[%clk 0:00:40]}  Ke5 {[%clk 0:01:31]} 41. Kc2 {[%clk 0:00:27]}  Rd6 {[%clk 0:00:56]} 42. a4 {[%clk 0:00:25]}  bxa3 {[%clk 0:00:54]} 43. bxa3 {[%clk 0:00:25]}  Rc6+ {[%clk 0:00:54]} 44. Kd2 {[%clk 0:00:25]}  Rb6 {[%clk 0:00:54]} 45. Ke2 {[%clk 0:00:22]}  Rb2+ {[%clk 0:00:54]} 46. Kf1 {[%clk 0:00:23]}  Ra2 {[%clk 0:00:40]} 47. Ra6 {[%clk 0:00:21]}  Ra1+ {[%clk 0:00:28]} 48. Kg2 {[%clk 0:00:21]}  Ra2 {[%clk 0:00:29]} 49. Rxg6 {[%clk 0:00:20]}  Rxa3 {[%clk 0:00:28]} 50. Rb6 {[%clk 0:00:19]}  Ra8 {[%clk 0:00:25]} 51. Kg3 {[%clk 0:00:18]}  Rg8+ {[%clk 0:00:25]} 52. Kh3 {[%clk 0:00:19]}  Rg1 {[%clk 0:00:25]} 53. Kh2 {[%clk 0:00:19]}  Rg4 {[%clk 0:00:24]} 54. Kh3 {[%clk 0:00:18]}  Rg1 {[%clk 0:00:24]} 55. Kh2 {[%clk 0:00:18]}  Rg8 {[%clk 0:00:23]} 56. Rb5+ {[%clk 0:00:17]}  Kf6 {[%clk 0:00:22]} 57. Kh3 {[%clk 0:00:17]}  Rg1 {[%clk 0:00:22]} 58. Kh2 {[%clk 0:00:17]}  Rg4 {[%clk 0:00:22]} 59. Kh3 {[%clk 0:00:17]}  Kg6 {[%clk 0:00:22]} 60. Rb8 {[%clk 0:00:17]}  Kh6 {[%clk 0:00:21]} 61. Rf8 {[%clk 0:00:16]}  Rg1 {[%clk 0:00:05]} 62. Rxf5 {[%clk 0:00:16]}  Kg6 {[%clk 0:00:04]} 63. Rf4 {[%clk 0:00:14]}  Kh5 {[%clk 0:00:03]} 64. Rxe4 {[%clk 0:00:13]}  Rh1+ {[%clk 0:00:04]} 65. Kg3 {[%clk 0:00:12]}  Rg1+ {[%clk 0:00:04]} 66. Kh2 {[%clk 0:00:13]}  Rf1 {[%clk 0:00:03]} 67. Kg2 {[%clk 0:00:13]}  Ra1 {[%clk 0:00:03]} 68. Rb4 {[%clk 0:00:13]}  Ra4 {[%clk 0:00:03]} 69. Rxa4 {[%clk 0:00:13]} 1-0


[Site "https://www.chess.com"]

[Event "Titled Tuesday Blitz May 10 Late 2022"]
[White "Leiva, Gianmarco"]
[Black "Malka, Samuel"]
[WhiteFideId "3804399"]
[BlackFideId "20643675"]
[WhiteElo "2700"]
[BlackElo "2558"]
[Result "1-0"]
[Round "06"]
[TimeControl "180+1"]
[Date "2022.05.11"]
[WhiteClock "0:00:06"]
[BlackClock "0:00:06"]

1. Nf3 {[%clk 0:03:00]}  Nf6 {[%clk 0:02:59]} 2. g3 {[%clk 0:03:01]}  g6 {[%clk 0:02:59]} 3. Bg2 {[%clk 0:03:02]}  Bg7 {[%clk 0:03:00]} 4. O-O {[%clk 0:03:03]}  O-O {[%clk 0:03:00]} 5. c4 {[%clk 0:03:03]}  c5 {[%clk 0:03:00]} 6. Nc3 {[%clk 0:03:02]}  Nc6 {[%clk 0:03:00]} 7. d3 {[%clk 0:03:02]}  d5 {[%clk 0:02:59]} 8. Bg5 {[%clk 0:03:01]}  dxc4 {[%clk 0:02:50]} 9. dxc4 {[%clk 0:03:00]}  Be6 {[%clk 0:02:49]} 10. Qa4 {[%clk 0:02:50]}  Qa5 {[%clk 0:02:42]} 11. Qxa5 {[%clk 0:02:40]}  Nxa5 {[%clk 0:02:43]} 12. b3 {[%clk 0:02:41]}  Rad8 {[%clk 0:02:19]} 13. Rad1 {[%clk 0:02:30]}  Nc6 {[%clk 0:02:07]} 14. h3 {[%clk 0:02:04]}  b6 {[%clk 0:01:34]} 15. Nb5 {[%clk 0:00:55]}  Ne4 {[%clk 0:01:24]} 16. Nc7 {[%clk 0:00:37]}  Nxg5 {[%clk 0:00:56]} 17. Nxg5 {[%clk 0:00:35]}  Bd7 {[%clk 0:00:54]} 18. Bxc6 {[%clk 0:00:14]}  Bxc6 {[%clk 0:00:51]} 19. Nd5 {[%clk 0:00:15]}  Bxd5 {[%clk 0:00:47]} 20. cxd5 {[%clk 0:00:13]}  Rd7 {[%clk 0:00:39]} 21. e4 {[%clk 0:00:13]}  Rfd8 {[%clk 0:00:39]} 22. Rb1 {[%clk 0:00:13]}  h6 {[%clk 0:00:18]} 23. Nf3 {[%clk 0:00:12]}  g5 {[%clk 0:00:16]} 24. Rfc1 {[%clk 0:00:10]}  e6 {[%clk 0:00:15]} 25. dxe6 {[%clk 0:00:10]}  fxe6 {[%clk 0:00:16]} 26. b4 {[%clk 0:00:11]}  cxb4 {[%clk 0:00:14]} 27. Rxb4 {[%clk 0:00:11]}  Rd1+ {[%clk 0:00:13]} 28. Rxd1 {[%clk 0:00:11]}  Rxd1+ {[%clk 0:00:13]} 29. Kg2 {[%clk 0:00:12]}  Rd7 {[%clk 0:00:13]} 30. Rc4 {[%clk 0:00:11]}  Bf8 {[%clk 0:00:13]} 31. Rc6 {[%clk 0:00:11]}  Bc5 {[%clk 0:00:10]} 32. Rxe6 {[%clk 0:00:10]}  Kg7 {[%clk 0:00:10]} 33. Rc6 {[%clk 0:00:08]}  Rd3 {[%clk 0:00:09]} 34. Rc7+ {[%clk 0:00:09]}  Kf8 {[%clk 0:00:09]} 35. Rxa7 {[%clk 0:00:09]}  Rc3 {[%clk 0:00:08]} 36. Rd7 {[%clk 0:00:08]}  Rc2 {[%clk 0:00:08]} 37. Rd2 {[%clk 0:00:08]}  Rc3 {[%clk 0:00:08]} 38. h4 {[%clk 0:00:07]}  gxh4 {[%clk 0:00:07]} 39. Nxh4 {[%clk 0:00:07]}  Kf7 {[%clk 0:00:06]} 40. f4 {[%clk 0:00:07]}  Ra3 {[%clk 0:00:05]} 41. Nf5 {[%clk 0:00:07]}  Bb4 {[%clk 0:00:05]} 42. Rc2 {[%clk 0:00:06]}  h5 {[%clk 0:00:05]} 43. Nd4 {[%clk 0:00:05]}  Bc5 {[%clk 0:00:04]} 44. Nf3 {[%clk 0:00:05]}  Re3 {[%clk 0:00:04]} 45. Rd2 {[%clk 0:00:04]}  Rxe4 {[%clk 0:00:04]} 46. Ng5+ {[%clk 0:00:05]}  Kg6 {[%clk 0:00:04]} 47. Nxe4 {[%clk 0:00:06]}  Kf5 {[%clk 0:00:05]} 48. Kf3 {[%clk 0:00:06]}  h4 {[%clk 0:00:05]} 49. g4+ {[%clk 0:00:06]}  Ke6 {[%clk 0:00:06]} 50. Rh2 {[%clk 0:00:06]} 1-0


[Site "https://www.chess.com"]

[Event "Titled Tuesday Blitz May 10 Late 2022"]
[White "Lewicki, Miroslaw"]
[Black "Szabo, Marton Mihaly"]
[WhiteFideId "1113380"]
[BlackFideId "787086"]
[WhiteElo "2552"]
[BlackElo "2689"]
[Result "1-0"]
[Round "06"]
[TimeControl "180+1"]
[Date "2022.05.11"]
[WhiteClock "0:00:27"]
[BlackClock "0:00:20"]

1. g3 {[%clk 0:02:52]}  c5 {[%clk 0:02:58]} 2. Bg2 {[%clk 0:02:53]}  Nc6 {[%clk 0:02:58]} 3. Nf3 {[%clk 0:02:53]}  g6 {[%clk 0:02:58]} 4. O-O {[%clk 0:02:54]}  Bg7 {[%clk 0:02:59]} 5. c3 {[%clk 0:02:55]}  e5 {[%clk 0:02:59]} 6. d4 {[%clk 0:02:56]}  cxd4 {[%clk 0:02:59]} 7. cxd4 {[%clk 0:02:57]}  d6 {[%clk 0:03:00]} 8. d5 {[%clk 0:02:57]}  Nce7 {[%clk 0:03:00]} 9. e4 {[%clk 0:02:57]}  h6 {[%clk 0:02:59]} 10. Nc3 {[%clk 0:02:57]}  Nf6 {[%clk 0:02:58]} 11. h3 {[%clk 0:02:49]}  O-O {[%clk 0:02:54]} 12. Be3 {[%clk 0:02:49]}  b6 {[%clk 0:02:50]} 13. Rc1 {[%clk 0:02:44]}  Bd7 {[%clk 0:02:42]} 14. Qb3 {[%clk 0:02:40]}  Kh7 {[%clk 0:02:30]} 15. Nd2 {[%clk 0:02:40]}  Ne8 {[%clk 0:02:25]} 16. f4 {[%clk 0:02:27]}  f5 {[%clk 0:02:14]} 17. Nc4 {[%clk 0:02:16]}  fxe4 {[%clk 0:02:06]} 18. fxe5 {[%clk 0:02:07]}  Rxf1+ {[%clk 0:02:00]} 19. Rxf1 {[%clk 0:02:07]}  dxe5 {[%clk 0:01:53]} 20. Rf7 {[%clk 0:01:47]}  Nf5 {[%clk 0:01:33]} 21. Nxe5 {[%clk 0:01:30]}  Nxe3 {[%clk 0:01:23]} 22. Rxd7 {[%clk 0:01:13]}  Qg5 {[%clk 0:01:18]} 23. Nxe4 {[%clk 0:01:01]}  Qxe5 {[%clk 0:01:15]} 24. Qxe3 {[%clk 0:01:01]}  Rc8 {[%clk 0:01:00]} 25. h4 {[%clk 0:00:45]}  Kh8 {[%clk 0:00:53]} 26. b3 {[%clk 0:00:40]}  Rc2 {[%clk 0:00:41]} 27. Qf3 {[%clk 0:00:34]}  Qd4+ {[%clk 0:00:34]} 28. Kh2 {[%clk 0:00:34]}  Rc1 {[%clk 0:00:35]} 29. Qf7 {[%clk 0:00:28]}  Qe5 {[%clk 0:00:20]} 30. Re7 {[%clk 0:00:27]} 1-0


[Site "https://www.chess.com"]

[Event "Titled Tuesday Blitz May 10 Late 2022"]
[White "Lin, Dachey"]
[Black "Jakubowski, Krzysztof"]
[WhiteFideId "2029650"]
[BlackFideId "1112848"]
[WhiteElo "2313"]
[BlackElo "2365"]
[Result "0-1"]
[Round "06"]
[TimeControl "180+1"]
[Date "2022.05.10"]
[WhiteClock "0:00:09"]
[BlackClock "0:00:06"]

1. c4 {[%clk 0:03:00]}  Nf6 {[%clk 0:02:58]} 2. g3 {[%clk 0:03:01]}  c6 {[%clk 0:02:56]} 3. Bg2 {[%clk 0:03:02]}  d5 {[%clk 0:02:56]} 4. Nf3 {[%clk 0:03:03]}  dxc4 {[%clk 0:02:52]} 5. O-O {[%clk 0:03:02]}  Nbd7 {[%clk 0:02:43]} 6. a4 {[%clk 0:03:01]}  a5 {[%clk 0:02:43]} 7. Qc2 {[%clk 0:03:00]}  Nb6 {[%clk 0:02:42]} 8. Na3 {[%clk 0:03:01]}  Be6 {[%clk 0:02:42]} 9. Ng5 {[%clk 0:03:01]}  Qc8 {[%clk 0:02:34]} 10. Rd1 {[%clk 0:02:25]}  g6 {[%clk 0:02:24]} 11. d3 {[%clk 0:02:05]}  cxd3 {[%clk 0:02:20]} 12. Rxd3 {[%clk 0:02:06]}  Nfd5 {[%clk 0:02:02]} 13. e4 {[%clk 0:01:56]}  Nb4 {[%clk 0:01:53]} 14. Qc3 {[%clk 0:01:56]}  f6 {[%clk 0:01:36]} 15. Nxe6 {[%clk 0:01:44]}  Qxe6 {[%clk 0:01:31]} 16. Rd1 {[%clk 0:01:42]}  Bg7 {[%clk 0:01:29]} 17. Qe3 {[%clk 0:01:14]}  Nxa4 {[%clk 0:01:02]} 18. b3 {[%clk 0:01:08]}  f5 {[%clk 0:00:58]} 19. e5 {[%clk 0:00:25]}  Qxe5 {[%clk 0:00:51]} 20. bxa4 {[%clk 0:00:26]}  Qxa1 {[%clk 0:00:36]} 21. Qe6 {[%clk 0:00:23]}  Rd8 {[%clk 0:00:17]} 22. Re1 {[%clk 0:00:22]}  Qf6 {[%clk 0:00:16]} 23. Qb3 {[%clk 0:00:22]}  Qf7 {[%clk 0:00:15]} 24. Qe3 {[%clk 0:00:20]}  O-O {[%clk 0:00:13]} 25. Bf1 {[%clk 0:00:20]}  Nd5 {[%clk 0:00:12]} 26. Qc5 {[%clk 0:00:18]}  Kh8 {[%clk 0:00:11]} 27. Qxa5 {[%clk 0:00:18]}  f4 {[%clk 0:00:11]} 28. g4 {[%clk 0:00:17]}  f3 {[%clk 0:00:11]} 29. Nc4 {[%clk 0:00:16]}  Bd4 {[%clk 0:00:10]} 30. Qd2 {[%clk 0:00:16]}  c5 {[%clk 0:00:09]} 31. Ne5 {[%clk 0:00:15]}  Qf6 {[%clk 0:00:09]} 32. g5 {[%clk 0:00:14]}  Qf4 {[%clk 0:00:07]} 33. Nc4 {[%clk 0:00:13]}  Qh4 {[%clk 0:00:06]} 34. Qc2 {[%clk 0:00:11]}  Nf4 {[%clk 0:00:06]} 35. Re4 {[%clk 0:00:11]}  Nh3+ {[%clk 0:00:06]} 36. Bxh3 {[%clk 0:00:08]}  Qxh3 {[%clk 0:00:07]} 37. Ne3 {[%clk 0:00:09]}  Bxe3 {[%clk 0:00:06]} 38. fxe3 {[%clk 0:00:09]}  f2+ {[%clk 0:00:06]} 0-1


[Site "https://www.chess.com"]

[Event "Titled Tuesday Blitz May 10 Late 2022"]
[White "Lohani, Sujana"]
[Black "Miszler, Levente"]
[WhiteFideId "12311987"]
[BlackFideId "763276"]
[WhiteElo "1691"]
[BlackElo "1966"]
[Result "0-1"]
[Round "06"]
[TimeControl "180+1"]
[Date "2022.05.11"]
[WhiteClock "0:00:07"]
[BlackClock "0:01:04"]

1. e4 {[%clk 0:03:00]}  e6 {[%clk 0:02:59]} 2. d4 {[%clk 0:03:01]}  d5 {[%clk 0:03:00]} 3. Nc3 {[%clk 0:03:00]}  Nf6 {[%clk 0:02:59]} 4. Bd3 {[%clk 0:02:59]}  Nc6 {[%clk 0:02:55]} 5. Be3 {[%clk 0:02:52]}  e5 {[%clk 0:02:51]} 6. exd5 {[%clk 0:02:49]}  Nxd5 {[%clk 0:02:49]} 7. Nxd5 {[%clk 0:02:45]}  Qxd5 {[%clk 0:02:50]} 8. dxe5 {[%clk 0:02:42]}  Qxg2 {[%clk 0:02:46]} 9. Qf3 {[%clk 0:02:34]}  Qxf3 {[%clk 0:02:42]} 10. Nxf3 {[%clk 0:02:34]}  Bg4 {[%clk 0:02:43]} 11. Be2 {[%clk 0:02:15]}  O-O-O {[%clk 0:02:25]} 12. Rg1 {[%clk 0:02:08]}  Bxf3 {[%clk 0:02:17]} 13. Bxf3 {[%clk 0:02:07]}  Nxe5 {[%clk 0:02:17]} 14. Be2 {[%clk 0:02:01]}  a6 {[%clk 0:02:06]} 15. Rd1 {[%clk 0:01:54]}  Bb4+ {[%clk 0:01:48]} 16. c3 {[%clk 0:01:52]}  Rxd1+ {[%clk 0:01:48]} 17. Kxd1 {[%clk 0:01:49]}  Rd8+ {[%clk 0:01:47]} 18. Kc2 {[%clk 0:01:48]}  Bf8 {[%clk 0:01:48]} 19. Bg4+ {[%clk 0:01:40]}  Kb8 {[%clk 0:01:45]} 20. Bf5 {[%clk 0:01:35]}  g6 {[%clk 0:01:30]} 21. Be4 {[%clk 0:01:29]}  f5 {[%clk 0:01:29]} 22. Bd4 {[%clk 0:01:16]}  Ng4 {[%clk 0:01:19]} 23. Bd3 {[%clk 0:01:01]}  c5 {[%clk 0:01:17]} 24. Be3 {[%clk 0:00:46]}  Bd6 {[%clk 0:01:12]} 25. h3 {[%clk 0:00:45]}  Ne5 {[%clk 0:01:11]} 26. h4 {[%clk 0:00:39]}  Nxd3 {[%clk 0:01:10]} 27. Rd1 {[%clk 0:00:32]}  Ne5 {[%clk 0:01:09]} 28. Bxc5 {[%clk 0:00:29]}  Bc7 {[%clk 0:01:09]} 29. Bd4 {[%clk 0:00:22]}  Nc6 {[%clk 0:01:07]} 30. h5 {[%clk 0:00:19]}  Nxd4+ {[%clk 0:01:06]} 31. cxd4 {[%clk 0:00:17]}  Re8 {[%clk 0:01:04]} 32. Kd3 {[%clk 0:00:15]}  Kc8 {[%clk 0:01:03]} 33. d5 {[%clk 0:00:13]}  Kd7 {[%clk 0:01:04]} 34. hxg6 {[%clk 0:00:12]}  hxg6 {[%clk 0:01:04]} 35. Rg1 {[%clk 0:00:11]}  Rg8 {[%clk 0:01:04]} 36. Re1 {[%clk 0:00:11]}  g5 {[%clk 0:01:03]} 37. Re6 {[%clk 0:00:10]}  g4 {[%clk 0:01:04]} 38. Rf6 {[%clk 0:00:10]}  f4 {[%clk 0:01:04]} 39. Rf7+ {[%clk 0:00:07]}  Kc8 {[%clk 0:01:04]} 0-1


[Site "https://www.chess.com"]

[Event "Titled Tuesday Blitz May 10 Late 2022"]
[White "Maghsoodloo, Parham"]
[Black "Lashkin, Jegor"]
[WhiteFideId "12539929"]
[BlackFideId "13907808"]
[WhiteElo "2630"]
[BlackElo "2368"]
[Result "1-0"]
[Round "06"]
[TimeControl "180+1"]
[Date "2022.05.10"]
[WhiteClock "0:00:10"]
[BlackClock "0:00:04"]

1. d4 {[%clk 0:03:00]}  Nf6 {[%clk 0:03:00]} 2. c4 {[%clk 0:03:00]}  e6 {[%clk 0:03:00]} 3. g3 {[%clk 0:03:00]}  d5 {[%clk 0:03:00]} 4. Bg2 {[%clk 0:03:00]}  dxc4 {[%clk 0:03:01]} 5. Qa4+ {[%clk 0:03:01]}  Nbd7 {[%clk 0:02:59]} 6. Nf3 {[%clk 0:03:00]}  a6 {[%clk 0:02:59]} 7. Qxc4 {[%clk 0:03:00]}  b5 {[%clk 0:02:58]} 8. Qc2 {[%clk 0:03:01]}  Bb7 {[%clk 0:02:59]} 9. O-O {[%clk 0:03:00]}  c5 {[%clk 0:02:59]} 10. Rd1 {[%clk 0:03:00]}  Rc8 {[%clk 0:02:59]} 11. Qd3 {[%clk 0:02:47]}  cxd4 {[%clk 0:02:54]} 12. Qxd4 {[%clk 0:02:33]}  Bc5 {[%clk 0:02:53]} 13. Qf4 {[%clk 0:02:33]}  Qb6 {[%clk 0:02:53]} 14. e3 {[%clk 0:02:31]}  O-O {[%clk 0:02:51]} 15. Nc3 {[%clk 0:02:28]}  Bc6 {[%clk 0:02:31]} 16. a3 {[%clk 0:02:19]}  a5 {[%clk 0:02:31]} 17. b4 {[%clk 0:02:19]}  Be7 {[%clk 0:02:28]} 18. Bb2 {[%clk 0:02:17]}  axb4 {[%clk 0:02:23]} 19. axb4 {[%clk 0:02:17]}  Qb7 {[%clk 0:02:23]} 20. Ne2 {[%clk 0:01:04]}  Nd5 {[%clk 0:02:09]} 21. Qg4 {[%clk 0:01:00]}  N7f6 {[%clk 0:02:09]} 22. Qh3 {[%clk 0:00:56]}  Nxe3 {[%clk 0:02:02]} 23. Ned4 {[%clk 0:00:43]}  Nxg2 {[%clk 0:01:47]} 24. Nxc6 {[%clk 0:00:41]}  Rxc6 {[%clk 0:01:44]} 25. Qxg2 {[%clk 0:00:42]}  Rc2 {[%clk 0:01:44]} 26. Bd4 {[%clk 0:00:37]}  Ng4 {[%clk 0:01:33]} 27. Ra7 {[%clk 0:00:18]}  Qd5 {[%clk 0:01:18]} 28. Rxe7 {[%clk 0:00:19]}  Nxf2 {[%clk 0:01:12]} 29. Rf1 {[%clk 0:00:19]}  Qd8 {[%clk 0:00:29]} 30. Ra7 {[%clk 0:00:15]}  e5 {[%clk 0:00:21]} 31. Bxf2 {[%clk 0:00:15]}  e4 {[%clk 0:00:21]} 32. Nd4 {[%clk 0:00:15]}  Rd2 {[%clk 0:00:16]} 33. Qxe4 {[%clk 0:00:15]}  Qc8 {[%clk 0:00:15]} 34. Nf5 {[%clk 0:00:14]}  Kh8 {[%clk 0:00:12]} 35. Bd4 {[%clk 0:00:14]}  f6 {[%clk 0:00:12]} 36. Rxg7 {[%clk 0:00:13]}  Re8 {[%clk 0:00:07]} 37. Re7 {[%clk 0:00:13]}  Rf8 {[%clk 0:00:07]} 38. Nd6 {[%clk 0:00:12]}  Qh3 {[%clk 0:00:05]} 39. Bxf6+ {[%clk 0:00:13]}  Rxf6 {[%clk 0:00:05]} 40. Re8+ {[%clk 0:00:09]}  Kg7 {[%clk 0:00:05]} 41. Qe7+ {[%clk 0:00:09]}  Kh6 {[%clk 0:00:03]} 42. Qxf6+ {[%clk 0:00:09]}  Kh5 {[%clk 0:00:03]} 43. Rf5+ {[%clk 0:00:10]}  Kg4 {[%clk 0:00:04]} 44. Re4# {[%clk 0:00:10]} 1-0


[Site "https://www.chess.com"]

[Event "Titled Tuesday Blitz May 10 Late 2022"]
[White "Melikyan, Gnel"]
[Black "Prohorov, Olexandr"]
[WhiteFideId "54109990"]
[BlackFideId "14105578"]
[WhiteElo "1772"]
[BlackElo "1993"]
[Result "1-0"]
[Round "06"]
[TimeControl "180+1"]
[Date "2022.05.11"]
[WhiteClock "0:00:08"]
[BlackClock "0:00:03"]

1. d4 {[%clk 0:03:00]}  g6 {[%clk 0:02:59]} 2. Nf3 {[%clk 0:03:00]}  Bg7 {[%clk 0:02:59]} 3. b3 {[%clk 0:03:01]}  f5 {[%clk 0:02:59]} 4. Bb2 {[%clk 0:03:01]}  Nf6 {[%clk 0:03:00]} 5. e3 {[%clk 0:03:01]}  O-O {[%clk 0:03:01]} 6. Nbd2 {[%clk 0:03:01]}  d6 {[%clk 0:03:01]} 7. c4 {[%clk 0:03:00]}  e6 {[%clk 0:03:01]} 8. Qc2 {[%clk 0:02:59]}  Nc6 {[%clk 0:03:01]} 9. a3 {[%clk 0:02:58]}  Qe7 {[%clk 0:03:00]} 10. g3 {[%clk 0:02:55]}  Bd7 {[%clk 0:02:56]} 11. Bg2 {[%clk 0:02:56]}  a6 {[%clk 0:02:55]} 12. b4 {[%clk 0:02:46]}  Rae8 {[%clk 0:02:48]} 13. Rd1 {[%clk 0:02:34]}  h6 {[%clk 0:02:42]} 14. h4 {[%clk 0:02:21]}  e5 {[%clk 0:02:34]} 15. dxe5 {[%clk 0:02:19]}  dxe5 {[%clk 0:02:28]} 16. Nb3 {[%clk 0:02:18]}  e4 {[%clk 0:02:17]} 17. Nfd4 {[%clk 0:02:15]}  Ne5 {[%clk 0:02:17]} 18. Nc5 {[%clk 0:02:06]}  Bc8 {[%clk 0:02:17]} 19. Ne2 {[%clk 0:01:25]}  b6 {[%clk 0:02:11]} 20. Bxe5 {[%clk 0:01:16]}  Qxe5 {[%clk 0:02:12]} 21. Nb3 {[%clk 0:01:16]}  Be6 {[%clk 0:02:10]} 22. Nbd4 {[%clk 0:01:13]}  Bf7 {[%clk 0:02:10]} 23. Rc1 {[%clk 0:01:03]}  Ng4 {[%clk 0:02:02]} 24. c5 {[%clk 0:00:57]}  b5 {[%clk 0:01:57]} 25. a4 {[%clk 0:00:56]}  Bc4 {[%clk 0:01:48]} 26. Bf1 {[%clk 0:00:48]}  Qf6 {[%clk 0:01:36]} 27. axb5 {[%clk 0:00:47]}  axb5 {[%clk 0:01:35]} 28. Nf4 {[%clk 0:00:47]}  Ne5 {[%clk 0:01:26]} 29. Bxc4+ {[%clk 0:00:39]}  bxc4 {[%clk 0:01:24]} 30. Qe2 {[%clk 0:00:28]}  Nd3+ {[%clk 0:01:17]} 31. Nxd3 {[%clk 0:00:27]}  cxd3 {[%clk 0:01:12]} 32. Qa2+ {[%clk 0:00:27]}  Kh7 {[%clk 0:01:11]} 33. Ra1 {[%clk 0:00:22]}  Qd8 {[%clk 0:00:56]} 34. Qc4 {[%clk 0:00:17]}  Bxd4 {[%clk 0:00:38]} 35. Qxd4 {[%clk 0:00:18]}  Qxd4 {[%clk 0:00:37]} 36. exd4 {[%clk 0:00:19]}  Rb8 {[%clk 0:00:38]} 37. Ra4 {[%clk 0:00:13]}  Rfd8 {[%clk 0:00:33]} 38. Kd2 {[%clk 0:00:11]}  Rxd4 {[%clk 0:00:34]} 39. Kc3 {[%clk 0:00:12]}  Rdd8 {[%clk 0:00:23]} 40. Ra7 {[%clk 0:00:12]}  Rd7 {[%clk 0:00:23]} 41. Rb1 {[%clk 0:00:12]}  g5 {[%clk 0:00:20]} 42. hxg5 {[%clk 0:00:11]}  hxg5 {[%clk 0:00:21]} 43. c6 {[%clk 0:00:12]}  Rg7 {[%clk 0:00:13]} 44. b5 {[%clk 0:00:12]}  Rb6 {[%clk 0:00:12]} 45. Rb7 {[%clk 0:00:11]}  f4 {[%clk 0:00:06]} 46. gxf4 {[%clk 0:00:10]}  gxf4 {[%clk 0:00:06]} 47. Kd4 {[%clk 0:00:10]}  Re7 {[%clk 0:00:05]} 48. Rxb6 {[%clk 0:00:09]}  cxb6 {[%clk 0:00:04]} 49. Rc1 {[%clk 0:00:07]}  e3 {[%clk 0:00:02]} 50. fxe3 {[%clk 0:00:07]}  fxe3 {[%clk 0:00:02]} 51. Kxd3 {[%clk 0:00:06]}  e2 {[%clk 0:00:02]} 52. Re1 {[%clk 0:00:07]}  Kg6 {[%clk 0:00:03]} 53. Rxe2 {[%clk 0:00:07]}  Rc7 {[%clk 0:00:02]} 54. Kc4 {[%clk 0:00:07]}  Kf6 {[%clk 0:00:02]} 55. Kd5 {[%clk 0:00:07]}  Rh7 {[%clk 0:00:02]} 56. Kd6 {[%clk 0:00:08]}  Rh8 {[%clk 0:00:01]} 57. c7 {[%clk 0:00:08]}  Kf5 {[%clk 0:00:01]} 58. Kc6 {[%clk 0:00:08]}  Kf4 {[%clk 0:00:01]} 59. Rd2 {[%clk 0:00:08]}  Kf3 {[%clk 0:00:02]} 60. Rd8 {[%clk 0:00:08]}  Ke4 {[%clk 0:00:03]} 61. Rxh8 {[%clk 0:00:08]} 1-0


[Site "https://www.chess.com"]

[Event "Titled Tuesday Blitz May 10 Late 2022"]
[White "Melkumyan, Hrant"]
[Black "Fedoseev, Vladimir"]
[WhiteFideId "13302485"]
[BlackFideId "24130737"]
[WhiteElo "2604"]
[BlackElo "2726"]
[Result "0-1"]
[Round "06"]
[TimeControl "180+1"]
[Date "2022.05.10"]
[WhiteClock "0:00:05"]
[BlackClock "0:00:34"]

1. d4 {[%clk 0:02:57]}  Nf6 {[%clk 0:02:43]} 2. c4 {[%clk 0:02:57]}  g6 {[%clk 0:02:43]} 3. Nc3 {[%clk 0:02:57]}  d5 {[%clk 0:02:41]} 4. Nf3 {[%clk 0:02:54]}  Bg7 {[%clk 0:02:40]} 5. Bg5 {[%clk 0:02:54]}  Ne4 {[%clk 0:02:37]} 6. Bf4 {[%clk 0:02:54]}  Nxc3 {[%clk 0:02:36]} 7. bxc3 {[%clk 0:02:55]}  c6 {[%clk 0:02:26]} 8. e3 {[%clk 0:02:54]}  O-O {[%clk 0:02:26]} 9. Qb3 {[%clk 0:02:51]}  b6 {[%clk 0:02:20]} 10. a4 {[%clk 0:02:45]}  Bg4 {[%clk 0:02:11]} 11. Be2 {[%clk 0:02:37]}  dxc4 {[%clk 0:02:09]} 12. Qxc4 {[%clk 0:02:33]}  Be6 {[%clk 0:02:09]} 13. Qd3 {[%clk 0:02:29]}  c5 {[%clk 0:02:03]} 14. O-O {[%clk 0:02:25]}  Nc6 {[%clk 0:02:00]} 15. Rfd1 {[%clk 0:02:25]}  Bb3 {[%clk 0:01:57]} 16. Rdb1 {[%clk 0:02:21]}  Na5 {[%clk 0:01:55]} 17. Nd2 {[%clk 0:02:15]}  Bd5 {[%clk 0:01:51]} 18. Bg3 {[%clk 0:02:12]}  Rc8 {[%clk 0:01:48]} 19. Rc1 {[%clk 0:02:07]}  Qd7 {[%clk 0:01:42]} 20. h4 {[%clk 0:01:50]}  Rfd8 {[%clk 0:01:40]} 21. h5 {[%clk 0:01:49]}  Be6 {[%clk 0:01:38]} 22. Bf3 {[%clk 0:01:43]}  Bg4 {[%clk 0:01:36]} 23. Qe2 {[%clk 0:01:35]}  Bxf3 {[%clk 0:01:34]} 24. Nxf3 {[%clk 0:01:36]}  Nb3 {[%clk 0:01:32]} 25. Be5 {[%clk 0:01:28]}  Nxc1 {[%clk 0:01:30]} 26. Rxc1 {[%clk 0:01:28]}  cxd4 {[%clk 0:01:29]} 27. exd4 {[%clk 0:01:27]}  Bh6 {[%clk 0:01:26]} 28. Rc2 {[%clk 0:01:20]}  gxh5 {[%clk 0:01:09]} 29. Bg3 {[%clk 0:01:17]}  Bg7 {[%clk 0:00:59]} 30. Ne5 {[%clk 0:00:48]}  Qf5 {[%clk 0:00:58]} 31. Kh2 {[%clk 0:00:26]}  Rxd4 {[%clk 0:00:57]} 32. Nf3 {[%clk 0:00:20]}  Rxa4 {[%clk 0:00:54]} 33. Rd2 {[%clk 0:00:19]}  Bf6 {[%clk 0:00:45]} 34. Qd1 {[%clk 0:00:18]}  Rg4 {[%clk 0:00:42]} 35. Nd4 {[%clk 0:00:16]}  Qg6 {[%clk 0:00:40]} 36. Qf3 {[%clk 0:00:13]}  h4 {[%clk 0:00:36]} 37. Bf4 {[%clk 0:00:13]}  e5 {[%clk 0:00:35]} 38. Bxe5 {[%clk 0:00:05]}  Bxe5+ {[%clk 0:00:34]} 0-1


[Site "https://www.chess.com"]